bitfinex/quotes_ETHUSD_20211001
["timestamp","ask_amount","ask_price","bid_price","bid_amount"]
[1633057645270,8.2313442,2997.8,2997.7,0.003]
[1633057645472,8.9310842,2997.8,2997.7,0.003]
[1633057645670,19.9310842,2997.8,2997.7,0.003]
[1633057646071,11.6198102,2997.8,2997.7,0.003]
[1633057646273,0.0048102,2997.8,2997.7,0.003]
[1633057647071,1.3103442,2997.8,2997.7,0.003]
[1633057647273,0.0163442,2997.8,2997.7,0.003]
[1633057647475,1.0163442,2997.8,2997.7,0.003]
[1633057647674,0.0163442,2997.8,2997.7,0.003]
[1633057647875,1.0163442,2997.8,2997.7,0.003]
[1633057648074,3.1280053,2997.8,2997.7,0.003]
[1633057648475,13.1280053,2997.8,2997.7,0.003]
[1633057649274,11.8340053,2997.8,2997.7,0.003]
[1633057649680,1.0163442,2997.8,2997.7,0.003]
[1633057649880,0.0048102,2997.8,2997.7,0.003]
[1633057651276,1.3114102,2997.8,2997.7,0.003]
[1633057651479,2.3114102,2997.8,2997.7,0.003]
[1633057652481,1.3114102,2997.8,2997.7,0.003]
[1633057652685,0.0048102,2997.8,2997.7,0.003]
[1633057653284,0.0048102,2997.8,2997.7,0.88330891]
[1633057653480,0.0048102,2997.8,2997.7,0.003]
[1633057654482,0.0048102,2997.8,2997.7,0.204]
[1633057655284,0.0048102,2997.8,2997.7,0.98451356]
[1633057657083,0.0048102,2997.8,2997.7,0.204]
[1633057657283,0.0048102,2997.8,2997.7,0.003]
[1633057657284,1.3526102,2997.8,2997.7,0.003]
[1633057657485,0.008624,2997.7,2997.6,7.05219769]
[1633057657684,0.0134342,2997.7,2997.6,7.05219769]
[1633057658082,0.0134342,2997.7,2997.6,7.84229848]
[1633057658483,0.204,2998.5,2998.2,0.2475658]
[1633057658783,0.003,2998.5,2998.4,5.00264]
[1633057658983,0.003,2998.5,2998.4,5.20364]
[1633057659385,0.003,2998.5,2998.4,8.09526546]
[1633057659583,0.003,2998.5,2998.4,11.23236546]
[1633057661185,0.003,2998.5,2998.4,9.23602631]
[1633057662791,0.003,2998.5,2998.4,7.94202631]
[1633057662989,0.003,2998.5,2998.4,6.09892631]
[1633057663386,0.003,2998.5,2998.4,7.39292631]
[1633057666986,0.003,2998.5,2998.4,5.20364]
[1633057667992,0.003,2998.5,2998.4,7.36531887]
[1633057668189,0.003,2998.5,2998.4,6.07131887]
[1633057669188,0.003,2998.5,2998.4,1.06867887]
[1633057670792,0.003,2998.5,2998.4,0.201]
[1633057675394,0.003,2998.5,2998.4,0.18035997]
[1633057675597,0.003,2998.5,2998.4,0.16866878]
[1633057677696,0.58079902,2998.8,2998.4,0.16866878]
[1633057678296,0.006,2998.8,2998.4,0.16866878]
[1633057679297,0.58133062,2998.8,2998.4,0.16866878]
[1633057679498,0.75625325,2998.7,2998.4,0.16866878]
[1633057680297,2.40455619,2998.6,2998.4,0.16866878]
[1633057681299,2.40455619,2998.6,2998.2,0.2475658]
[1633057681300,1.86941295,2998.5,2998.2,0.2475658]
[1633057681499,0.5754301,2998.4,2998.2,0.2475658]
[1633057681698,7.15913246,2998.3,2998.2,0.2475658]
[1633057681898,0.95913246,2998.3,2998.2,0.2475658]
[1633057682199,3.46493246,2998.3,2998.2,0.2475658]
[1633057682801,2.5058,2998.3,2998.2,0.2475658]
[1633057683101,2.08127483,2998.3,2998.2,0.2475658]
[1633057683299,1.57547483,2998.3,2998.2,0.2475658]
[1633057683497,2.86947483,2998.3,2998.2,0.2475658]
[1633057683899,1.57547483,2998.3,2998.2,0.2475658]
[1633057684500,2.86947483,2998.3,2998.2,0.2475658]
[1633057684702,2.294,2998.3,2998.2,0.2475658]
[1633057685301,3.2532392,2998.3,2998.2,0.2475658]
[1633057688304,8.2532392,2998.3,2998.2,0.2475658]
[1633057688564,7.294,2998.3,2998.2,0.2475658]
[1633057688962,8.25333493,2998.3,2998.2,0.2475658]
[1633057689161,8.63706891,2998.3,2998.2,0.2475658]
[1633057689365,8.63706891,2998.3,2998.2,0.22280923]
[1633057689762,1.0,2998.3,2998.2,0.22280923]
[1633057689962,8.87787039,2998.4,2998.2,0.22280923]
[1633057689963,0.57554721,2998.4,2998.2,0.22280923]
[1633057690161,0.58035741,2998.4,2998.2,0.22280923]
[1633057690361,0.0048102,2998.4,2998.2,0.22280923]
[1633057691766,0.58033858,2998.4,2998.2,0.22280923]
[1633057691967,0.58034716,2998.4,2998.2,0.22280923]
[1633057692166,0.57553926,2998.3,2998.2,0.22280923]
[1633057692364,1.29795594,2998.3,2998.2,0.22280923]
[1633057693365,2.59195594,2998.3,2998.2,0.22280923]
[1633057693566,3.01641668,2998.3,2998.2,0.22280923]
[1633057696167,3.97576722,2998.3,2998.2,0.22280923]
[1633057696770,2.68176722,2998.3,2998.2,0.22280923]
[1633057697368,1.96416074,2998.3,2998.2,0.22280923]
[1633057697571,0.0048102,2998.3,2998.2,0.22280923]
[1633057697770,0.58039329,2998.3,2998.2,0.22280923]
[1633057699770,0.0048102,2998.3,2998.2,0.22280923]
[1633057700971,5.58508378,2998.3,2998.2,0.22280923]
[1633057701572,1.58046378,2998.3,2998.2,0.22280923]
[1633057701774,0.0048102,2998.3,2998.2,0.22280923]
[1633057701978,0.0048102,2998.3,2998.2,5.42732923]
[1633057702372,0.0048102,2998.3,2998.2,6.72132923]
[1633057702571,0.0048102,2998.3,2998.2,7.47292143]
[1633057702971,0.0048102,2998.3,2998.2,9.0200217]
[1633057705778,0.0048102,2998.3,2998.2,7.47292143]
[1633057705977,0.0048102,2998.3,2998.2,0.42380923]
[1633057707380,0.71108987,2998.7,2998.2,0.42380923]
[1633057707579,0.0048102,2998.6,2998.4,1.294]
[1633057707778,0.0048102,2998.6,2998.4,0.079913]
[1633057708182,0.0048102,2998.6,2998.5,0.96509047]
[1633057708580,0.0048102,2998.6,2998.5,5.96791047]
[1633057709581,0.13571021,2998.7,2998.5,11.25585693]
[1633057709783,0.13571021,2998.7,2998.6,2.34947226]
[1633057709981,0.13571021,2998.7,2998.6,15.071]
[1633057710379,1.021e-05,2998.7,2998.6,9.821]
[1633057710584,0.006,2998.9,2998.7,8.85]
[1633057710782,0.009,2999.0,2998.8,23.2093073]
[1633057710982,0.006,2999.2,2998.9,10.78108056]
[1633057711184,0.006,2999.7,2999.1,8.85]
[1633057711381,0.006,2999.7,2999.2,14.99255023]
[1633057711583,0.006,2999.7,2999.2,7.43655023]
[1633057711983,0.006,2999.7,2999.2,12.43708023]
[1633057712184,1.0377287,3000.0,2999.3,7.2]
[1633057712388,1.98156125,2999.9,2999.8,0.71051895]
[1633057712585,1.98156125,2999.9,2999.8,0.91151895]
[1633057712783,1.98156125,2999.9,2999.8,0.201]
[1633057713783,1.98156125,2999.9,2999.8,5.94408772]
[1633057713987,1.98156125,2999.9,2999.8,5.2012]
[1633057714185,1.98156125,2999.9,2999.8,0.201]
[1633057718789,1.98468506,2999.9,2999.8,0.201]
[1633057720589,1.98368506,2999.9,2999.8,1.495]
[1633057720790,0.00212381,2999.9,2999.8,3.65816313]
[1633057720990,0.00212381,2999.9,2999.8,1.5587]
[1633057721794,1.98152438,2999.9,2999.8,1.5587]
[1633057721992,0.00212381,2999.9,2999.8,0.90999962]
[1633057722391,0.00212381,2999.9,2999.8,0.201]
[1633057723796,0.00212381,2999.9,2999.8,1.0350155]
[1633057724394,0.00212381,2999.9,2999.8,0.201]
[1633057728598,0.00212381,2999.9,2999.8,1.05039601]
[1633057729399,0.00298841,2999.9,2999.8,1.05039601]
[1633057734203,0.006,3000.8,3000.7,1.63510894]
[1633057734406,0.006,3001.1,3000.9,5.2]
[1633057734603,0.006,3001.1,3000.8,0.35640852]
[1633057734604,0.006,3001.1,3001.0,8.94438173]
[1633057734803,0.006,3001.1,3001.0,6.34321046]
[1633057735004,0.006,3001.1,3001.0,7.34321046]
[1633057735204,0.006,3001.1,3001.0,9.60423546]
[1633057735404,0.006,3001.1,3001.0,9.58022418]
[1633057735609,0.006,3001.1,3001.0,14.57719418]
[1633057736609,0.006,3001.1,3001.0,12.14832318]
[1633057737005,0.006,3001.1,3001.0,13.14832318]
[1633057737208,0.006,3001.1,3001.0,14.85052318]
[1633057737406,0.006,3001.1,3001.0,16.14452318]
[1633057737607,0.006,3001.4,3001.1,8.35448164]
[1633057737806,0.006,3001.4,3001.2,5.221]
[1633057738007,0.006,3001.4,3001.3,4.99657]
[1633057738208,0.006,3001.4,3001.3,5.19757]
[1633057739207,0.006,3001.4,3001.3,7.03096947]
[1633057740409,0.006,3001.4,3001.3,8.70186947]
[1633057741811,0.006,3001.4,3001.3,8.69797795]
[1633057742210,0.006,3001.4,3001.3,6.86457848]
[1633057742472,0.006,3001.4,3001.3,5.19367848]
[1633057743213,0.006,3001.4,3001.3,7.16950823]
[1633057744213,0.006,3001.4,3001.3,5.19367848]
[1633057751518,0.006,3001.4,3001.3,6.19367848]
[1633057752521,0.006,3001.4,3001.3,5.19367848]
[1633057752921,0.94656105,3001.9,3001.3,5.19367848]
[1633057752922,0.94456105,3001.9,3001.3,5.19367848]
[1633057753132,0.84456105,3001.9,3001.3,5.19367848]
[1633057753322,0.009,3002.0,3001.5,0.88724405]
[1633057753523,0.009,3002.0,3001.6,0.201]
[1633057753724,1.82793436,3001.8,3001.6,0.201]
[1633057754323,5.00703,3002.0,3001.6,0.201]
[1633057754724,0.77370539,3001.9,3001.6,0.201]
[1633057754920,0.77370539,3001.9,3001.6,0.18941706]
[1633057755324,1.60488463,3001.7,3001.6,0.18941706]
[1633057756323,0.009,3002.0,3001.6,0.18941706]
[1633057756925,0.7196682,3001.9,3001.6,0.18941706]
[1633057757324,1.94059231,3001.7,3001.6,0.18941706]
[1633057759985,1.94059231,3001.7,3001.6,0.17782706]
[1633057761186,0.7196682,3001.9,3001.6,0.17782706]
[1633057761988,0.7196682,3001.9,3001.6,5.17538706]
[1633057762186,1.79168098,3001.7,3001.6,0.17782706]
[1633057763187,1.79168098,3001.7,3001.6,5.17550706]
[1633057764392,1.79168098,3001.7,3001.6,0.17782706]
[1633057765592,0.7196682,3001.9,3001.6,0.17782706]
[1633057766998,1.99527997,3001.7,3001.6,0.17782706]
[1633057768197,1.99527997,3001.7,3001.6,0.1661435]
[1633057768397,0.7196682,3001.9,3001.6,0.1661435]
[1633057769398,1.56795576,3002.0,3001.6,0.1661435]
[1633057769602,0.009,3002.0,3001.6,0.1661435]
[1633057770001,0.009,3002.0,3001.6,5.1637535]
[1633057770399,0.81484568,3002.0,3001.6,0.1661435]
[1633057771000,1.89947252,3001.9,3001.6,5.1637935]
[1633057771403,1.89947252,3001.9,3001.6,0.1661435]
[1633057772001,1.89947252,3001.9,3001.6,5.1638435]
[1633057772801,0.009,3002.0,3001.6,5.1638435]
[1633057773805,2.58784259,3001.8,3001.6,5.1638435]
[1633057775004,2.58784259,3001.8,3001.6,8.4954035]
[1633057775204,2.58784259,3001.8,3001.6,3.4977035]
[1633057776006,2.58784259,3001.8,3001.6,0.1661435]
[1633057776204,0.8002877,3001.8,3001.6,0.1661435]
[1633057777207,1.7496767,3001.7,3001.6,0.1661435]
[1633057778205,1.7496767,3001.7,3001.6,0.16396954]
[1633057778407,1.7496767,3001.7,3001.6,0.15618533]
[1633057780608,1.7496767,3001.7,3001.6,5.15366533]
[1633057781609,1.7496767,3001.7,3001.6,0.15618533]
[1633057783016,3.17572934,3001.3,3001.0,1.10119918]
[1633057783212,0.02437226,3001.1,3001.0,1.10119918]
[1633057783809,0.88745603,3001.1,3001.0,1.10119918]
[1633057784008,7.42341272,3001.1,3001.0,1.10119918]
[1633057784410,8.42341272,3001.1,3001.0,1.10119918]
[1633057785012,1.0,3001.1,3001.0,1.10119918]
[1633057785214,3.17572934,3001.3,3001.0,1.10119918]
[1633057786011,4.86298385,3001.3,3001.0,2.05021116]
[1633057786813,3.17572934,3001.3,3001.0,2.05021116]
[1633057787016,0.009,3002.0,3001.3,5.05]
[1633057787215,0.009,3002.0,3001.8,0.079913]
[1633057787415,0.009,3002.0,3001.8,1.633213]
[1633057787818,2.489,3002.0,3001.8,1.633213]
[1633057788316,0.006,3002.4,3001.8,1.633213]
[1633057788317,2.486,3002.7,3002.1,0.96977574]
[1633057788514,2.486,3002.7,3002.2,0.201]
[1633057789117,1.46534926,3002.5,3002.2,0.201]
[1633057789514,0.011534,3002.3,3002.0,2.70604497]
[1633057790014,4.16116568,3002.1,3002.0,2.70604497]
[1633057790215,2.83384907,3002.1,3002.0,2.70604497]
[1633057791314,3.83384907,3002.1,3002.0,2.70604497]
[1633057792719,3.83470925,3002.1,3002.0,2.70604497]
[1633057793922,5.70219639,3002.1,3002.0,2.70604497]
[1633057794121,8.11813491,3002.0,3001.5,0.003]
[1633057794323,1.45649945,3001.3,3001.0,0.003]
[1633057794522,4.30249945,3001.3,3001.0,0.003]
[1633057794722,4.30249945,3001.3,3000.5,0.006]
[1633057794723,2.30204721,3001.2,3000.5,0.006]
[1633057794925,0.011534,3000.9,3000.5,0.006]
[1633057795122,0.011534,3000.9,3000.0,0.35071703]
[1633057795123,2.00159566,3000.8,3000.3,0.006]
[1633057795322,2.00159566,3000.8,3000.0,0.003]
[1633057795323,0.011534,3000.4,3000.1,0.006]
[1633057795527,1.216134,3000.4,2999.9,0.009]
[1633057795722,1.216134,3000.4,2999.4,0.012]
[1633057795723,2.3237776,3000.3,2999.4,0.012]
[1633057795924,5.0021,2999.9,2999.3,0.012]
[1633057796124,5.82027444,2999.9,2999.3,0.97609018]
[1633057796328,1.56812199,2999.5,2999.3,0.97609018]
[1633057796523,2.84912199,2999.5,2999.4,0.012]
[1633057797522,1.4872,2999.6,2999.4,0.012]
[1633057797523,0.8557,2999.6,2999.4,0.012]
[1633057797723,2.84045334,3000.2,2999.4,0.012]
[1633057797923,1.0,3000.0,2999.4,0.012]
[1633057798128,1.0,3000.1,2999.4,0.012]
[1633057798324,0.201,3000.2,2999.4,0.012]
[1633057798525,1.0,3000.3,2999.4,0.012]
[1633057798526,1.43104779,2999.7,2999.4,0.012]
[1633057798725,2.23502535,3000.0,2999.4,0.012]
[1633057798925,1.0,3000.0,2999.4,0.012]
[1633057799327,1.99385497,3000.1,2999.4,0.012]
[1633057799994,1.66431023,2999.7,2999.4,0.012]
[1633057800793,1.3596,2999.9,2999.4,0.012]
[1633057800995,2.3596,2999.9,2999.4,0.012]
[1633057801195,1.0,2999.9,2999.4,0.012]
[1633057801394,0.99385497,3000.1,2999.4,0.012]
[1633057801991,1.4176419,2999.9,2999.4,0.012]
[1633057802793,0.99385497,3000.1,2999.4,0.012]
[1633057802994,1.99385497,3000.1,2999.4,0.012]
[1633057803192,5.99571497,3000.1,2999.4,0.012]
[1633057803394,1.99385497,3000.1,2999.4,0.012]
[1633057803792,1.6814323,2999.6,2999.4,0.012]
[1633057803995,2.22922366,2999.5,2999.4,0.012]
[1633057804193,2.22922366,2999.5,2999.3,0.012]
[1633057804393,1.6929663,2999.6,2998.9,0.015]
[1633057804592,2.26277958,2999.5,2998.9,0.015]
[1633057804794,1.60890392,2999.1,2998.9,0.015]
[1633057805194,0.6304,2999.2,2998.9,0.015]
[1633057805394,2.50992224,2999.6,2998.9,0.015]
[1633057805596,2.39475378,2999.8,2999.0,5.00186]
[1633057805796,2.39475378,2999.8,2998.9,0.015]
[1633057806000,0.011534,2999.6,2999.1,0.012]
[1633057806196,0.201,2999.5,2999.1,0.012]
[1633057806394,0.201,2999.5,2998.9,0.015]
[1633057806595,1.201,2999.5,2998.5,0.018]
[1633057806793,2.78587352,2999.4,2998.3,0.018]
[1633057806996,5.00403,2999.0,2998.3,0.018]
[1633057807194,2.41457599,2998.9,2998.6,0.92068428]
[1633057807393,2.41457599,2998.9,2998.1,10.9697]
[1633057807394,1.93144826,2998.8,2998.1,10.9697]
[1633057807598,2.60118849,2998.7,2998.2,0.68589265]
[1633057808394,1.93144826,2998.8,2998.5,0.92076931]
[1633057809199,1.93144826,2998.8,2998.1,0.201]
[1633057809400,2.42452169,2998.7,2998.0,0.003]
[1633057809601,5.00488,2998.6,2998.0,0.003]
[1633057809800,5.00488,2998.6,2997.9,0.68597003]
[1633057810001,2.24976229,2998.5,2997.9,0.003]
[1633057810200,2.24976229,2998.5,2998.2,0.77529476]
[1633057810400,1.68586612,2998.3,2998.2,0.77529476]
[1633057810600,1.0,2998.8,2998.2,0.77529476]
[1633057810601,0.204,2999.0,2998.2,0.77529476]
[1633057811000,0.003,2999.0,2998.2,0.77529476]
[1633057811602,1.8881949,2998.6,2998.2,0.77529476]
[1633057812203,1.003,2999.0,2998.4,1.294]
[1633057812403,0.003,2999.0,2998.6,0.079913]
[1633057812602,0.003,2999.0,2998.7,0.201]
[1633057813202,0.003,2999.0,2998.8,0.92691873]
[1633057813401,0.003,2999.0,2998.8,1.12791873]
[1633057814002,0.003,2999.0,2998.8,0.201]
[1633057814804,1.51556966,2998.9,2998.8,0.201]
[1633057815202,0.003,2999.0,2998.8,1.495]
[1633057815403,0.003,2999.0,2998.8,0.201]
[1633057817203,0.003,2999.0,2998.5,0.201]
[1633057817404,1.594,2999.0,2998.5,0.201]
[1633057817803,0.77312651,2998.9,2998.5,0.201]
[1633057818006,1.83212963,2998.7,2998.5,0.201]
[1633057821806,1.83212963,2998.7,2998.1,0.201]
[1633057822006,3.43292963,2998.7,2998.1,0.201]
[1633057822606,3.43292963,2998.7,2998.1,5.20452]
[1633057822807,1.6008,2998.7,2998.3,3.33534]
[1633057823409,0.003,2999.0,2998.3,3.33534]
[1633057823610,0.003,2999.0,2998.3,10.078777]
[1633057823808,1.76905896,2999.0,2998.5,1.97364943]
[1633057824408,0.83391456,2998.8,2998.4,3.5361323]
[1633057824610,0.83391456,2998.8,2998.5,5.00289]
[1633057824808,1.76905896,2999.0,2998.5,5.00289]
[1633057825808,2.6139008,2999.0,2998.5,5.00289]
[1633057826412,2.6139008,2999.0,2998.6,3.33511]
[1633057827610,2.6139008,2999.0,2998.6,8.33805]
[1633057828013,0.003,2999.0,2998.6,3.33511]
[1633057828211,0.003,2999.0,2998.8,0.079913]
[1633057828410,0.003,2999.0,2998.8,0.280913]
[1633057828610,0.003,2999.0,2998.8,5.283353]
[1633057828811,0.003,2999.0,2998.8,0.201]
[1633057829010,0.003,2999.0,2998.8,1.15543046]
[1633057829212,0.003,2999.0,2998.9,1.65961508]
[1633057829411,0.003,2999.0,2998.8,1.15543046]
[1633057829811,0.003,2999.0,2998.8,6.15806046]
[1633057830812,0.003,2999.0,2998.9,5.16887895]
[1633057831012,0.003,2999.0,2998.9,1.81887895]
[1633057832016,0.003,2999.0,2998.9,8.36887895]
[1633057832215,0.003,2999.5,2999.0,8.853]
[1633057832413,0.003,2999.5,2999.4,0.079913]
[1633057832614,0.003,2999.5,2999.4,0.280913]
[1633057832813,0.003,2999.5,2999.4,3.04526437]
[1633057833013,0.003,2999.5,2999.4,4.33926437]
[1633057833213,0.003,2999.5,2999.4,9.34027437]
[1633057837018,0.003,2999.5,2999.4,14.36027437]
[1633057838018,0.003,2999.5,2999.4,10.301923]
[1633057838219,0.003,2999.5,2999.4,5.221]
[1633057839223,0.003,2999.5,2999.4,6.89974596]
[1633057839826,0.003,2999.5,2999.4,5.221]
[1633057840420,0.003,2999.5,2999.4,10.22192]
[1633057846826,0.003,2999.5,2999.4,5.221]
[1633057848628,0.003,2999.5,2999.4,10.22178]
[1633057849428,0.003,2999.5,2999.4,11.89544395]
[1633057849629,0.003,2999.5,2999.4,6.89466395]
[1633057850028,0.003,2999.5,2999.4,5.221]
[1633057851432,0.003,2999.5,2999.4,5.2892994]
[1633057852430,0.003,2999.5,2999.4,5.2093864]
[1633057852631,0.003,2999.5,2999.4,10.2103564]
[1633057853030,0.003,2999.5,2999.4,11.90340333]
[1633057854031,0.78368846,2999.5,2999.4,10.2103564]
[1633057854232,0.78368846,2999.5,2999.4,5.2093864]
[1633057856634,0.78368846,2999.5,2999.4,0.1893864]
[1633057856834,0.78368846,2999.5,2999.4,0.1393864]
[1633057857434,1.7297668,2999.4,2999.1,0.201]
[1633057857835,2.7297668,2999.4,2999.1,0.201]
[1633057858432,0.003,2999.5,2999.1,0.201]
[1633057858833,0.003,2999.5,2999.1,5.20325]
[1633057859234,0.003,2999.5,2999.1,0.201]
[1633057859434,1.46393105,2999.3,2999.1,0.201]
[1633057860037,0.85485041,2999.4,2999.1,0.201]
[1633057860236,0.85485041,2999.4,2999.1,8.53798]
[1633057860435,0.003,2999.5,2999.1,3.53566]
[1633057861236,0.003,2999.5,2999.3,10.20615132]
[1633057861435,0.003,2999.5,2999.3,3.33424]
[1633057862635,0.003,2999.5,2999.4,5.00136]
[1633057863936,0.003,2999.5,2999.3,3.33424]
[1633057865939,0.003,2999.5,2999.4,4.301]
[1633057866141,0.003,2999.5,2999.4,0.201]
[1633057866338,0.003,2999.5,2999.4,5.20285]
[1633057871042,0.003,2999.5,2999.4,7.07222005]
[1633057871517,0.003,2999.5,2999.4,5.20285]
[1633057873706,0.003,2999.5,2999.4,0.201]
[1633057873907,0.003,2999.5,2999.0,0.201]
[1633057874707,0.003,2999.5,2999.0,0.97494349]
[1633057875106,1.54368239,2999.2,2999.0,0.97494349]
[1633057875507,1.54368239,2999.2,2999.0,5.97742349]
[1633057875908,1.54368239,2999.2,2999.0,5.20348]
[1633057877407,2.28900822,2999.2,2999.0,5.20348]
[1633057877609,0.003,2999.5,2999.0,5.20348]
[1633057878612,1.51386302,2999.3,2999.0,5.20348]
[1633057879009,0.72954202,2999.5,2999.0,5.20348]
[1633057879209,0.72954202,2999.5,2999.0,5.05348]
[1633057880209,0.72954202,2999.5,2999.1,0.67442549]
[1633057880409,0.72954202,2999.5,2999.1,5.00234]
[1633057881408,2.02332608,2999.4,2999.1,5.00234]
[1633057882009,0.72954202,2999.5,2999.2,3.33444]
[1633057882212,0.003,2999.5,2999.2,3.33444]
[1633057882911,1.86776742,2999.5,2999.2,3.33444]
[1633057883111,2.58317099,2999.5,2999.2,3.33444]
[1633057883611,2.58317099,2999.5,2999.3,4.90155]
[1633057883814,0.003,2999.5,2999.3,4.90155]
[1633057884812,0.003,2999.5,2999.3,6.47120193]
[1633057885213,0.003,2999.5,2999.3,4.90155]
[1633057885814,0.003,2999.5,2999.4,3.22357042]
[1633057886013,0.003,2999.5,2999.2,10.00311]
[1633057886212,0.003,2999.5,2999.3,0.67405602]
[1633057886612,1.92086651,2999.5,2999.3,0.67405602]
[1633057886813,0.003,2999.5,2999.4,5.00104]
[1633057887814,0.003,2999.5,2999.4,5.20204]
[1633057889616,0.87636241,2999.5,2999.4,5.20204]
[1633057893720,0.87636241,2999.5,2999.4,5.88003868]
[1633057893920,0.003,2999.5,2999.4,5.88003868]
[1633057894123,0.003,2999.5,2999.4,5.67903868]
[1633057894321,0.003,2999.5,2999.4,5.00104]
[1633057894921,0.003,2999.5,2999.4,5.67958289]
[1633057895322,0.003,2999.5,2999.4,5.00104]
[1633057895523,0.003,2999.5,2999.4,5.67996009]
[1633057901327,0.003,2999.5,2999.4,7.37203319]
[1633057901528,0.003,2999.5,2999.4,8.94362119]
[1633057901728,0.003,2999.5,2999.4,9.92746017]
[1633057902527,0.003,2999.5,2999.4,8.63346017]
[1633057902726,0.003,2999.5,2999.4,6.94138707]
[1633057902927,0.003,2999.5,2999.4,5.88096009]
[1633057904328,0.003,2999.5,2999.4,7.17496009]
[1633057904531,0.003,2999.5,2999.4,5.88096009]
[1633057909034,0.003,2999.5,2999.4,7.24987409]
[1633057909433,0.003,2999.5,2999.4,5.95587409]
[1633057910034,0.003,2999.5,2999.4,7.24987409]
[1633057910436,0.003,2999.5,2999.4,5.95587409]
[1633057911437,0.003,2999.5,2999.4,5.88096009]
[1633057912438,0.003,2999.5,2999.4,6.71501527]
[1633057913438,0.003,2999.5,2999.4,9.88919927]
[1633057913637,0.003,3000.0,2999.5,8.85]
[1633057913837,0.003,3000.0,2999.9,0.079913]
[1633057914042,0.003,3000.0,2999.9,0.280913]
[1633057914238,0.003,3000.0,2999.9,1.79714215]
[1633057914440,0.003,3000.0,2999.9,5.84786749]
[1633057914850,0.003,3000.0,2999.9,10.84719749]
[1633057916839,0.003,3000.5,3000.2,1.62461091]
[1633057917040,0.003,3000.5,3000.3,2.25349861]
[1633057917238,0.003,3000.5,3000.4,0.67846307]
[1633057917441,0.003,3000.5,3000.4,0.87946307]
[1633057917638,0.003,3000.5,3000.4,3.79584745]
[1633057918038,0.003,3000.5,3000.4,4.79584745]
[1633057918239,0.003,3000.5,3000.4,6.08984745]
[1633057918640,0.003,3000.5,3000.4,7.34721218]
[1633057919040,0.003,3001.0,3000.4,12.36721218]
[1633057919240,0.003,3001.0,3000.8,0.079913]
[1633057919527,0.003,3001.0,3000.9,0.87728184]
[1633057919640,0.003,3001.0,3000.9,2.15718184]
[1633057920047,0.003,3001.0,3000.9,5.03114509]
[1633057920240,0.003,3001.0,3000.9,10.70482685]
[1633057920440,0.003,3001.0,3000.9,11.99882685]
[1633057920643,0.003,3001.0,3000.9,17.01882685]
[1633057920847,0.003,3001.0,3000.9,36.59882685]
[1633057921242,0.006,3001.7,3001.1,8.8]
[1633057921442,0.006,3001.7,3001.6,2.67623731]
[1633057921645,0.006,3001.7,3001.6,4.10243731]
[1633057921843,0.006,3001.7,3001.6,5.18235031]
[1633057922044,0.006,3001.7,3001.6,11.97695573]
[1633057922645,0.006,3001.7,3001.6,18.26750573]
[1633057922842,0.006,3001.7,3001.6,18.98833485]
[1633057923244,0.006,3001.7,3001.6,12.522663]
[1633057923444,0.006,3001.7,3001.6,11.44275]
[1633057924444,0.006,3001.7,3001.6,14.14361815]
[1633057924646,0.006,3001.7,3001.6,14.21893915]
[1633057924844,0.006,3001.7,3001.6,15.21893915]
[1633057927446,0.006,3001.7,3001.6,13.34247524]
[1633057928245,0.006,3001.7,3001.6,14.63647524]
[1633057928509,0.006,3001.7,3001.6,14.31020313]
[1633057928851,0.006,3001.7,3001.6,15.31020313]
[1633057929048,0.006,3001.7,3001.6,14.34247524]
[1633057929248,0.006,3001.7,3001.6,13.34247524]
[1633057929450,0.006,3001.7,3001.6,13.41455524]
[1633057930051,0.006,3001.7,3001.6,15.35275461]
[1633057930852,0.006,3001.7,3001.6,14.35275461]
[1633057931653,0.006,3001.7,3001.6,15.35275461]
[1633057934858,0.006,3001.7,3001.6,14.41455524]
[1633057935459,0.006,3001.7,3001.6,5.19755]
[1633057935662,0.006,3001.7,3001.6,0.201]
[1633057935858,2.23412604,3001.7,3001.6,0.201]
[1633057936058,0.93412604,3001.7,3001.6,0.201]
[1633057937264,0.006,3001.8,3001.6,0.201]
[1633057937662,1.84880897,3001.8,3001.6,0.201]
[1633057938463,8.094,3001.7,3001.6,0.201]
[1633057938667,9.6105,3001.7,3001.0,0.204]
[1633057938862,0.011534,3001.6,3001.0,0.204]
[1633057939263,1.84880897,3001.8,3001.1,1.74822412]
[1633057939465,1.294,3001.5,3001.2,0.73594617]
[1633057939665,1.84880897,3001.8,3001.2,0.73594617]
[1633057939863,1.84880897,3001.8,3001.0,0.204]
[1633057940062,3.332798,3001.5,3001.0,0.204]
[1633057940662,1.294,3001.3,3001.0,0.204]
[1633057940865,3.332798,3001.5,3001.0,2.77618073]
[1633057941062,1.71515621,3001.3,3001.0,1.02773834]
[1633057941663,1.71515621,3001.3,3001.0,0.204]
[1633057944466,0.9247618,3001.4,3001.0,0.204]
[1633057944665,1.294,3001.2,3001.0,0.204]
[1633057944867,0.9247618,3001.4,3001.0,0.204]
[1633057945669,1.294,3001.2,3001.0,0.003]
[1633057945868,1.9247618,3001.4,3001.0,0.003]
[1633057946074,0.02482978,3001.3,3000.6,0.204]
[1633057946272,7.0,3001.2,3000.5,0.003]
[1633057946548,1.43064003,3000.6,3000.3,0.003]
[1633057946668,2.24971468,3001.0,3000.3,1.88109059]
[1633057946869,3.3337567,3000.6,3000.3,1.88109059]
[1633057947069,3.3334041,3001.0,3000.4,0.003]
[1633057947668,1.70464229,3000.7,3000.4,0.003]
[1633057948469,1.294,3000.6,3000.4,0.003]
[1633057948672,1.70464229,3000.7,3000.3,0.003]
[1633057950270,5.03804109,3000.7,3000.3,0.003]